Workbook

Sheet WPPSI-III
C1: Name: | D1: John S | G1: Date of Test: | H1: 2002-12-02 | M1: Date Analyzed: | N1: =NOW() -> 2014-02-11T13:38:47.560 | U1: =YEAR(H1) -> 2002 | V1: =MONTH(H1) -> 12 | W1: =DAY(H1) -> 2 | X1: =IF(Y2>Z1,U1-1,U1) -> 2002 | Y1: =IF(Y2>Z1,Z1+12,Z1) -> 11 | Z1: =IF(AA2>W1,V1-1,V1) -> 11 | AA1: =IF(AA2>W1,W1+30,W1) -> 32
G2: Date of Birth: | H2: 1998-09-13 | M2: Age: | N2: =AC3 -> 4 years, 2 months, 19 days | X2: =YEAR(H2) -> 1998 | Y2: =MONTH(H2) -> 9 | AA2: =DAY(H2) -> 13
X3: =X1-X2 -> 4 | Y3: =Y1-Y2 -> 2 | AA3: =AA1-AA2 -> 19 | AC3: =X3&" years, "&Y3&Y4&AA3&AA4 -> 4 years, 2 months, 19 days
N4: =IF(OR(X3<2,X3>7),"The age computed is not supported by the WPPSI III",IF(AND(X3=2,Y3<6),"The age computed is not supported by the WPPSI III",IF(AND(X3=7,Y3>3),"The age computed is not supported by the WPPSI III",""))) ->  | T4: =FIND(" ",D1) -> 5 | U4: =MID(D1,1,T4-1) -> John | Y4: =IF(Y3=1," month, "," months, ") -> months, | AA4: =IF(AA3=1," day"," days") -> days
W5: 1 | X5: 2 | Z5: 4 | AA5: 5 | AB5: 6 | AC5: 7 | AD5: 8 | AE5: 9 | AF5: 10 | AG5: 11 | AH5: 12 | AI5: 13
W6: 16 | X6: 18 | Y6: 20 | Z6: 25 | AA6: 30 | AB6: 35 | AC6: 45 | AD6: 55 | AE6: 65 | AF6: 70 | AG6: 75 | AH6: 80 | AI6: 85
D7: SUBTESTS | F7: ss | G7: VIQ | H7: PIQ | I7: PS | J7: GL | K7: Full Scale | L7: PR | W7: =LOOKUP(N2,W6:AI6,W5:AI5) ->  | X7: age grp
B8: Check the subtests used in the Full Scale IQ calculation (7 required). Core subtests are those with borders | F8: 10 | H8: =IF(F8="","",IF(U8=0,"("&F8&")",F8)) -> 10 | K8: =IF(U8=0,"",IF(F8="","",F8)) -> 10 | L8: =IF(F8="","",LOOKUP(F8,$D$310:$W$310,$D$311:$W$311)) -> 50 | N8: =IF(W17>3,"You have selected too many subtests for calculation of a Verbal IQ",IF(W17<3,"You have selected too few subtests for calculation of a Verbal IQ","")) ->  | T8: TRUE | U8: =IF(T8=TRUE,1,0) -> 1 | W8: viq | Y8: piq | Z8: fs | AA8: psi | AC8: gl | AE8: wmi | AG8: ps
F9: 9 | G9: =IF(F9="","",IF(U9=0,"("&F9&")",F9)) -> 9 | K9: =IF(U9=0,"",IF(F9="","",F9)) -> 9 | L9: 37 | T9: TRUE | U9: =IF(T9=TRUE,1,0) -> 1 | W9: =G23 -> 20 | Y9: =H23 -> 23 | Z9: =K23 -> 46 | AA9: =I23 -> 9 | AC9: =J23 -> 27 | AE9: =F13+F15+F20 -> 23 | AG9: =F10+F19 -> 23
F10: 8 | H10: =IF(F10="","",IF(U10=0,"("&F10&")",F10)) -> 8 | K10: 8 | L10: 25 | N10: =IF(W16>3,"You have selected too many subtests for calculation of a Performance IQ",IF(W16<3,"You have selected too few subtests for calculation of a Performance IQ","")) ->  | T10: TRUE | U10: 1
F11: 7 | G11: =IF(F11="","",IF(U11=0,"("&F11&")",F11)) -> 7 | K11: 7 | L11: 16 | T11: TRUE | U11: 1 | Y11: ss | AB11: ss
F12: 5 | H12: =IF(F12="","",IF(U12=0,"("&F12&")",F12)) -> 5 | K12: 5 | L12: 5 | N12: =IF(W18>7,"You have selected too many subtests for inclusion in a Full Scale IQ",IF(W18<7,"You have selected too few subtests for calculation of a Full Scale IQ","")) ->  | T12: TRUE | U12: 1
F13: 6 | I13: =IF(F13="","",F13) -> 6 | L13: 9 | T13: FALSE | U13: 0 | Z13: I V WR | AA13: =IF(U9+U11+U14=3,1,0) -> 1 | AC13: BD MR PCn | AE13: =IF(U8+U10+U12=3,1,0) -> 1
F14: 4 | G14: =IF(F14="","",IF(U14=0,"("&F14&")",F14)) -> 4 | K14: 4 | L14: 2 | N14: =IF(AB26<2,"You have too few subtest scores for calculation of a Processing Speed Index","") ->  | T14: TRUE | U14: 1 | Z14: I V C | AA14: =IF(U9+U11+U16=3,2,0) -> 0 | AC14: BD MR PCmp | AE14: =IF(U8+U10+U17=3,2,0) -> 0
F15: 3 | I15: =IF(F15="","",F15) -> 3 | K15: 3 | L15: 1 | T15: TRUE | U15: 1 | W15: =U13+U15 -> 1 | X15: psi | Z15: I V S | AA15: =IF(U9+U11+U18=3,3,0) -> 0 | AC15: BD MR OA | AE15: =IF(U8+U10+U20=3,3,0) -> 0
F16: 2 | G16: =IF(F16="","",IF(U16=0,"("&F16&")",F16)) -> (2) | L16: 0.4 | N16: =IF(AND(W17=3,AA20>0),"The Verbal IQ is based upon the following subtests: "&CHOOSE(AA20,Z13,Z14,Z15,Z16,Z17,Z18,Z19),IF(AA20=0,"The combination of Verbal subtests chosen cannot be used to compute an IQ.","")) -> The Verbal IQ is based upon the following subtests: I V WR | T16: FALSE | U16: 0 | W16: =U8+U10+U12+U17+U20 -> 3 | X16: piq | Z16: I C WR | AA16: =IF(U9+U16+U14=3,4,0) -> 0 | AC16: BD PCmp PCn | AE16: =IF(U8+U12+U17=3,4,0) -> 0
F17: 1 | H17: =IF(F17="","",IF(U17=0,"("&F17&")",F17)) -> (1) | L17: 0.1 | T17: FALSE | U17: 0 | W17: =U9+U11+U14+U16+U18 -> 3 | X17: verbal | Z17: I S WR | AA17: =IF(U9+U18+U14=3,5,0) -> 0 | AC17: BD OA PCn | AE17: =IF(U8+U20+U12=3,5,0) -> 0
F18: 11 | G18: =IF(F18="","",IF(U18=0,"("&F18&")",F18)) -> (11) | L18: 63 | N18: =IF(AND(W16=3,AE20>0),"The Performance IQ is based upon the following subtests: "&CHOOSE(AE20,AC13,AC14,AC15,AC16,AC17,AC18,AC19),IF(AE20=0,"The combination of Performance subtests chosen cannot be used to compute an IQ.","")) -> The Performance IQ is based upon the following subtests: BD MR PCn | T18: FALSE | U18: 0 | W18: =SUM(U8:U18)+U20 -> 7 | X18: total | Z18: C V WR | AA18: =IF(U16+U11+U14=3,6,0) -> 0 | AC18: PCmp MR PCn | AE18: =IF(U17+U10+U12=3,6,0) -> 0
D19: (Receptive Vocabulary) | F19: 15 | J19: =IF(F19="","",F19) -> 15 | L19: 95 | T19: FALSE | U19: =IF(T19=TRUE,1,0) -> 0 | Z19: S V WR | AA19: =IF(U18+U11+U14=3,7,0) -> 0 | AC19: OA MR PCn | AE19: =IF(U20+U10+U12=3,7,0) -> 0
F20: 14 | H20: =IF(F20="","",IF(U20=0,"("&F20&")",F20)) -> (14) | L20: 91 | T20: FALSE | U20: 0 | Z20: v combo | AA20: =SUM(AA13:AA19) -> 1 | AD20: p combo | AE20: =SUM(AE13:AE19) -> 1 | AF20: cd or ss | AG20: =IF(U15=1,1,IF(U13=1,2,0)) -> 1
D21: (Picture Naming) | F21: 12 | J21: =IF(F21="","",F21) -> 12 | L21: 75 | T21: TRUE | U21: 1
F23: Sums of Scaled Scores | G23: =SUM(G9:G18) -> 20 | H23: =SUM(H8:H20) -> 23 | I23: =SUM(I13:I15) -> 9 | J23: =SUM(J19:J21) -> 27 | K23: =SUM(K8:K20) -> 46 | U23: i | V23: =IF(F9="","",1) -> 1 | W23: =IF(F9="","",F9) -> 9 | X23: bd | Y23: =IF(F8="","",1) -> 1 | Z23: =IF(F8="","",F8) -> 10 | AA23: ss | AB23: =IF(F13="","",1) -> 1 | AC23: =IF(F13="","",F13) -> 6 | AD23: RV | AE23: =IF(F19="","",1) -> 1 | AF23: =IF(F19="","",F19) -> 15
A24: WPPSI III Interpretive Worksheet | U24: v | V24: =IF(F11="","",1) -> 1 | W24: =IF(F11="","",F11) -> 7 | X24: mr | Y24: =IF(F10="","",1) -> 1 | Z24: =IF(F10="","",F10) -> 8 | AA24: cd | AB24: =IF(F15="","",1) -> 1 | AC24: =IF(F15="","",F15) -> 3 | AD24: PN | AE24: =IF(F21="","",1) -> 1 | AF24: =IF(F21="","",F21) -> 12
B25: 1. Evaluate the Full Scale IQ | U25: wr | V25: =IF(F14="","",1) -> 1 | W25: =IF(F14="","",F14) -> 4 | X25: pconc | Y25: =IF(F12="","",1) -> 1 | Z25: =IF(F12="","",F12) -> 5 | AC25: =SUM(AC23:AC24) -> 9 | AF25: =SUM(AF23:AF24) -> 27
H26: Obtained | J26: Percentile | L26: Confidence | U26: c | V26: =IF(F16="","",1) -> 1 | W26: =IF(F16="","",F16) -> 2 | X26: pcm | Y26: =IF(F17="","",1) -> 1 | Z26: =IF(F17="","",F17) -> 1 | AB26: =SUM(AB23:AB25) -> 2 | AD26: =SUM(AE23:AE25) -> 2
F27: SS Totals | H27: IQ | J27: Rank | L27: Bands | U27: s | V27: =IF(F18="","",1) -> 1 | W27: =IF(F18="","",F18) -> 11 | X27: oa | Y27: =IF(F20="","",1) -> 1 | Z27: =IF(F20="","",F20) -> 14
W28: =SUM(W23:W27) -> 33 | Z28: =SUM(Z23:Z27) -> 38
D29: Verbal | F29: =IF(W17=3,"("&W9&")","") -> (20) | H29: 81 | J29: =IF(H29="","",LOOKUP(H29,B304:BG305)) -> 10 | L29: =IF(H29="","",(H29+(LOOKUP(H29,D380:O381))&" - "&(H29+(LOOKUP(H29,D380:O380,D382:O382))))) -> 76 - 88 | N29: =IF(H29="","",LOOKUP((LOOKUP(H29,D380:K381)+H29),$D$378:$J$379)&" to "&LOOKUP((LOOKUP(H29,D380:K380,D382:K382)+H29),$D$378:$J$379)) -> Borderline to Low Average | Y29: =SUM(Y23:Y27) -> 5
D30: Performance | F30: =IF(W16=3,"("&Y9&")","") -> (23) | H30: 84 | J30: =IF(H30="","",LOOKUP(H30,B304:BG305)) -> 14 | L30: =IF(H30="","",(H30+(LOOKUP(H30,D383:R384))&" - "&(H30+(LOOKUP(H30,D383:R383,D385:R385))))) -> 78 - 92 | N30: =IF(H30="","",LOOKUP((LOOKUP(H30,D383:K384)+H30),$D$378:$J$379)&" to "&LOOKUP((LOOKUP(H30,D383:R383,D385:R385)+H30),$D$378:$J$379)) -> Borderline to Average | V30: =SUM(V23:V27) -> 5 | W30: =SUM(V23:V29) -> 5 | Y30: =SUM(Y23:Y27) -> 5 | AD30: =W30+Y30+AB26+AD26 -> 14
D31: Full Scale | F31: =IF(W18=7,"("&Z9&")","") -> (46) | H31: 77 | J31: =IF(H31="","",LOOKUP(H31,B304:BG305)) -> 6 | L31: =IF(H31="","",(H31+(LOOKUP(H31,D386:M387))&" - "&(H31+(LOOKUP(H31,D386:M386,D388:M388))))) -> 73 - 83 | N31: =IF(H31="","",LOOKUP((LOOKUP(H31,D386:I387)+H31),$D$378:$J$379)&" to "&LOOKUP((LOOKUP(H31,D386:I386,D388:I388)+H31),$D$378:$J$379)) -> Borderline to Low Average | U31: Vx= | V31: =W28/V30 -> 6.6 | W31: =W28/W30 -> 6.6 | X31: =SUM(W23:W29) -> 66 | Y31: Px= | Z31: =Z28/Y30 -> 7.6 | AB31: =SUM(W28+Z28+AC25+AF25) -> 107 | AC31: FSx= | AD31: =AB31/AD30 -> 7.642857143 | AF31: vp diff | AG31: =ABS(H29-H30) -> 3
U32: v max | V32: =MAX(W23:W27) -> 11 | X32: p max | Y32: =MAX(Z23:Z27) -> 14 | Z32: =IF(V32=Y32,V32,IF(V32>Y32,V32,Y32)) -> 14 | AG32: =LOOKUP(AG31,D323:AR323,D332:AR332) -> 81
D33: Processing Speed | F33: =IF(AB26<2,"","("&AA9&")") -> (9) | H33: 71 | J33: =IF(H33="","",LOOKUP(H33,B304:BG305)) -> 3 | L33: =IF(H33="","",(H33+(LOOKUP(H33,D389:AA390))&" - "&(H33+(LOOKUP(H33,D389:AA389,D391:AA391))))) -> 66 - 83 | N33: =IF(H33="","",LOOKUP((LOOKUP(H33,D392:R393)+H33),$D$378:$J$379)&" to "&LOOKUP((LOOKUP(H33,D392:R392,D394:R394)+H33),$D$378:$J$379)) -> Extremely Low to Low Average | U33: v min | V33: =MIN(W23:W27) -> 2 | X33: p min | Y33: =MIN(Z23:Z27) -> 1 | Z33: =IF(V33=Y33,V33,IF(V33<Y33,V33,Y33)) -> 1 | AA33: =Z32-Z33 -> 13
D34: General Language Composite | F34: =IF(AD26<2,"","("&AC9&")") -> (27) | H34: 118 | J34: =IF(H34="","",LOOKUP(H34,B304:BG305)) -> 88 | L34: =IF(H34="","",(H34+(LOOKUP(H34,D392:V393))&" - "&(H34+(LOOKUP(H34,D392:V392,D394:V394))))) -> 109 - 124 | N34: =IF(H34="","",LOOKUP((LOOKUP(H34,D389:M390)+H34),$D$378:$J$379)&" to "&LOOKUP((LOOKUP(H34,D389:M389,D391:M391)+H34),$D$378:$J$379)) -> High Average to Superior | U34: diff | V34: =ABS(V32-V33) -> 9 | X34: diff | Y34: =ABS(Y32-Y33) -> 13 | AA34: fs sc diff | AB34: =AA33 -> 13
U35: v scat | V35: =IF(V30<6,"",IF(V30=6, LOOKUP(V34,D323:V323,D324:V324),LOOKUP(V34,D323:V323,D325:V325))) ->  | X35: p scat | Y35: =IF(Y30<4,"",LOOKUP(Y34,D323:V323,D326:V326)) -> 6 | AA35: 11fs scat | AB35: =LOOKUP(AB34,D323:V323,D328:W328) -> 0.3 | AD35: =IF(AD30=14,AB37,IF(AD30=11,AB35,AB36)) -> 0.8
B36: 2. Is the VIQ versus PIQ Significantly Different? | AA36: 1213fs scat | AB36: =LOOKUP(AB34,D323:V323,D329:W329) -> 0.8
AA37: 14fs scat | AB37: =LOOKUP(AB34,D323:V323,D330:W330) -> 0.8
F38: Significance | L38: Is there a significant difference? | Y38: =IF(H29=H30,0,IF(H29>H30,1,2)) -> 2
D39: ="VIQ ("&H29&") vs PIQ ("&H30&") Difference" -> VIQ (81) vs PIQ (84) Difference | F39: (p < .01) | H39: (p < .05) | J39: none | T39: =ABS(H29-H30) -> 3 | U39: =IF(T39=1," point"," points") -> points | Y39: =IF(ABS(H29-H30)>8,1,-1) -> -1
D40: =IF(OR(H29="",H30=""),"",T39&U39) -> 3 points | F40: 12 or more | H40: 10 - 11 | J40: 0 - 9 | L40: =IF(OR(H29="",H30=""),"",IF(T39>11, "YES, p = .01", IF(T39<9, "NO","YES, p = .05"))) -> NO | T40: =IF(L40="NO",0,1) -> 0 | V40: Because there is no significant differences between the VIQ and PIQ, explain the meaning of the scales not being significantly different. | Y40: =SUM(Y38+Y39) -> 1
V41: Because there is a significant difference between the VIQ and PIQ, interpret the FSIQ with caution. Examine further steps.
D43: =IF(L40="","",IF(T40=0,V40,V41)) -> Because there is no significant differences between the VIQ and PIQ, explain the meaning of the scales not being significantly different.
B47: 3. Is the VIQ versus PIQ Difference Abnormally Large?
W48: 1 | X48: 2 | Y48: 3 | Z48: 4 | AA48: 5
C49: ="VIQ ("&H29&") vs PIQ ("&H30&") Difference" -> VIQ (81) vs PIQ (84) Difference | F49: Size of Difference needed for abnormality | L49: Is Size of Difference Abnormal? | T49: =IF(H29=H30,0,IF(H29>H30,1,2)) -> 2 | U49: =IF(H31>119,5,IF(H31>109,4,IF(H31>89,3,IF(H31>79,2,1)))) -> 1 | V49: 1 | W49: 20 | X49: 20 | Y49: 16 | Z49: 21 | AA49: 18
C50: =D40&" ("&T50&")" -> 3 points (V < P) | F50: =INDEX(W49:AA50,T49,U49) -> 13 | L50: =IF(D40="","",IF(T39<F50,"NO","YES")) -> NO | T50: =IF(H29=H30,"V = P",IF(H29>H30,"V > P","V < P")) -> V < P | U50: IQ group | V50: 2 | W50: 13 | X50: 15 | Y50: 17 | Z50: 18 | AA50: 18
T52: =IF(L50="NO",0,1) -> 0 | V52: Because no abnormal differences are found, determine if the noted differences are interpretable.
D53: =IF(T52=0,V52,V53) -> Because no abnormal differences are found, determine if the noted differences are interpretable. | V53: Because an abnormal difference was found, explain the abnormally large V/P difference.
B57: 4. Is the VIQ versus PIQ discrepancy interpretable?
D59: A. Is there abnormal verbal scatter? | M59: Is there abnormal scatter?
D60: Verbal Subtests High-Low Difference | I60: Normal | K60: Abnormal
D61: =V34&U61 -> 9 points | I61: 0 - 5 | K61: 6 or more | M61: =IF(V34>5,"YES","NO") -> YES | U61: =IF(V34=1," point"," points") -> points
D64: B. Is there abnormal performance scatter? | M64: Is there abnormal scatter?
D65: Performance Subtests High-Low Difference | I65: Normal | K65: Abnormal | U65: =IF(M61="NO",0,1) -> 1
D66: =Y34&U67 -> 13 points | I66: 0 - 7 | K66: 8 or more | M66: =IF(Y34>7,"YES","NO") -> YES | U66: =IF(M66="NO",0,1) -> 1 | V66: =U65+U66 -> 2 | W66: Because each answers to A and B was NO, the VIQ versus PIQ discrepancy is interpretable.
U67: =IF(Y34=1," point"," points") -> points | W67: Because an answer to either A or B was YES, the VIQ versus PIQ discrepancy differences should probably not be interpreted.
D69: =IF(V66=0,W66,W67) -> Because an answer to either A or B was YES, the VIQ versus PIQ discrepancy differences should probably not be interpreted.
B73: 5. Determine if the PS Index is interpretable.
D75: A. Is there a significant difference between the PSI subtests? | M75: Is there abnormal scatter?
D76: =IF(AB26=1,"No Index Computed","PSI Subtests [SS ("&F13&") Cd ("&F15&")] Difference ") -> PSI Subtests [SS (6) Cd (3)] Difference | I76: Normal | K76: Abnormal | U76: =ABS(AC23-AC24) -> 3
D77: =U76&U78 -> 3 points | I77: 0 - 3 | K77: 4 or more | M77: =IF(AB26<>2,"",IF(U76>3,"YES","NO")) -> NO | U77: =IF(M77="NO",0,1) -> 0
U78: =IF(U76=1," point"," points") -> points
D80: =IF(AB26<>2,"No index computed",IF(U77=0,"The PSI may be interpreted.","Because of subtest differences in the PSI, do not interpret PSI.")) -> The PSI may be interpreted.
B83: 6. Interpret significant strengths and weaknesses.
G84: Verbal mean | K84: =V31 -> 6.6 | L84: =" based on "&V30&" subtests" -> based on 5 subtests
G85: Performance mean | K85: =Z31 -> 7.6 | L85: =" based on "&Y30&" subtests" -> based on 5 subtests
G86: Full Scale mean | K86: =AD31 -> 7.642857143 | L86: =" based on "&AD30&" subtests" -> based on 14 subtests
H88: Verbal / Performance Statistics | N88: Full Scale Statistics
F89: ss | I89: Crit. Value | K89: Deviation | N89: Crit. Value | P89: Deviation
B90: Verbal | D90: Information | F90: =IF(F9="","",F9) -> 9 | I90: =IF(F90="","",IF($W$30<3,"",2)) -> 2 | K90: =IF(F90="","",(F90-$K$84)) -> 2.4 | L90: =IF(F90="","",IF(SUM(U90+V90)=4,"s",IF(SUM(U90+V90)=2,"w"," "))) -> s | N90: =IF(F90="","",IF($AD$30<7,"",3)) -> 3 | P90: =IF(N90="","",($F90-K$86)) -> 1.357142857 | Q90: =IF(F90="","",IF(SUM(W90+X90)=4,"s",IF(SUM(W90+X90)=2,"w",""))) ->  | U90: =IF(ABS(K90)>I90,3,0) -> 3 | V90: =SIGN(K90) -> 1 | W90: =IF(ABS(P90)>N90,3,0) -> 0 | X90: =SIGN(P90) -> 1 | AA90: =IF(W90=0,0,1) -> 0 | AB90: =Q90 -> 
D91: Vocabulary | F91: =IF(F11="","",F11) -> 7 | I91: =IF(F91="","",IF($W$30<3,"",2)) -> 2 | K91: =IF(F91="","",(F91-$K$84)) -> 0.4 | L91: =IF(F91="","",IF(SUM(U91+V91)=4,"s",IF(SUM(U91+V91)=2,"w"," "))) ->  | N91: =IF(F91="","",IF($AD$30<7,"",3)) -> 3 | P91: =IF(N91="","",($F91-K$86)) -> -0.6428571429 | Q91: =IF(F91="","",IF(SUM(W91+X91)=4,"s",IF(SUM(W91+X91)=2,"w",""))) ->  | U91: =IF(ABS(K91)>I91,3,0) -> 0 | V91: =SIGN(K91) -> 1 | W91: =IF(ABS(P91)>N91,3,0) -> 0 | X91: =SIGN(P91) -> -1 | AA91: =IF(W91=0,0,1) -> 0 | AB91: =Q91 -> 
D92: Word Reasoning | F92: =IF(F14="","",F14) -> 4 | I92: =IF(F92="","",IF($W$30<3,"",2)) -> 2 | K92: =IF(F92="","",(F92-$K$84)) -> -2.6 | L92: =IF(F92="","",IF(SUM(U92+V92)=4,"s",IF(SUM(U92+V92)=2,"w"," "))) -> w | N92: =IF(F92="","",IF($AD$30<7,"",IF(AD30>12,3,2))) -> 3 | P92: =IF(N92="","",($F92-K$86)) -> -3.642857143 | Q92: =IF(F92="","",IF(SUM(W92+X92)=4,"s",IF(SUM(W92+X92)=2,"w",""))) -> w | U92: =IF(ABS(K92)>I92,3,0) -> 3 | V92: =SIGN(K92) -> -1 | W92: =IF(ABS(P92)>N92,3,0) -> 3 | X92: =SIGN(P92) -> -1 | AA92: 1 | AB92: =Q92 -> w | AF92: =LOOKUP(#REF!,R335:W335,R336:W336) ->  | AG92: =LOOKUP(#REF!,R337:W337,R338:W338) ->  | AH92: =LOOKUP(#REF!,R339:W339,R340:W340) ->  | AI92: =LOOKUP(#REF!,R341:W341,R342:W342) ->  | AJ92: =LOOKUP(#REF!,R343:W343,R344:W344) ->  | AK92: =CHOOSE(AE36,AF92,AG92,AH92,AI92,AJ92) -> 
D93: Comprehension | F93: =IF(F16="","",F16) -> 2 | I93: =IF(F93="","",IF($W$30<3,"",2)) -> 2 | K93: =IF(F93="","",(F93-$K$84)) -> -4.6 | L93: =IF(F93="","",IF(SUM(U93+V93)=4,"s",IF(SUM(U93+V93)=2,"w"," "))) -> w | N93: =IF(F93="","",IF($AD$30<7,"",3)) -> 3 | P93: =IF(N93="","",($F93-K$86)) -> -5.642857143 | Q93: =IF(F93="","",IF(SUM(W93+X93)=4,"s",IF(SUM(W93+X93)=2,"w",""))) -> w | U93: =IF(ABS(K93)>I93,3,0) -> 3 | V93: =SIGN(K93) -> -1 | W93: =IF(ABS(P93)>N93,3,0) -> 3 | X93: =SIGN(P93) -> -1 | AA93: 1 | AB93: =Q93 -> w | AF93: =LOOKUP(#REF!,D335:I335,D336:I336) ->  | AG93: =LOOKUP(#REF!,D337:I337,D338:I338) ->  | AH93: =LOOKUP(#REF!,D339:I339,D340:I340) ->  | AI93: =LOOKUP(#REF!,D341:I341,D342:I342) ->  | AJ93: =LOOKUP(#REF!,D343:I343,D344:I344) ->  | AK93: =CHOOSE(AE36,AF93,AG93,AH93,AI93,AJ93) -> 
D94: Similarities | F94: =IF(F18="","",F18) -> 11 | I94: =IF(F94="","",IF($W$30<3,"",2)) -> 2 | K94: =IF(F94="","",(F94-$K$84)) -> 4.4 | L94: =IF(F94="","",IF(SUM(U94+V94)=4,"s",IF(SUM(U94+V94)=2,"w"," "))) -> s | N94: =IF(F94="","",IF($AD$30<7,"",2)) -> 2 | P94: =IF(N94="","",($F94-K$86)) -> 3.357142857 | Q94: =IF(F94="","",IF(SUM(W94+X94)=4,"s",IF(SUM(W94+X94)=2,"w",""))) -> s | U94: =IF(ABS(K94)>I94,3,0) -> 3 | V94: =SIGN(K94) -> 1 | W94: =IF(ABS(P94)>N94,3,0) -> 3 | X94: =SIGN(P94) -> 1 | AA94: 1 | AB94: =Q94 -> s | AF94: =LOOKUP(#REF!,K335:P335,K336:P336) ->  | AG94: =LOOKUP(#REF!,K337:P337,K338:P338) ->  | AH94: =LOOKUP(#REF!,K339:P339,K340:P340) ->  | AI94: =LOOKUP(#REF!,K341:P341,K342:P342) ->  | AJ94: =LOOKUP(#REF!,K343:P343,K344:P344) ->  | AK94: =CHOOSE(AE36,AF94,AG94,AH94,AI94,AJ94) -> 
U95: =IF(ABS(K96)>I96,3,0) -> 0 | V95: =SIGN(K96) -> 1 | W95: =IF(ABS(P96)>N96,3,0) -> 0 | X95: =SIGN(P96) -> 1 | AA95: 0 | AB95: =Q96 -> 
B96: Performance | D96: Block Design | F96: =IF(F8="","",F8) -> 10 | I96: =IF(F96="","",IF($Y$30<3,"",IF(Y30=5,3,2))) -> 3 | K96: =IF(F96="","",(F96-$K$85)) -> 2.4 | L96: =IF(F96="","",IF(SUM(U95+V95)=4,"s",IF(SUM(U95+V95)=2,"w"," "))) ->  | N96: =IF(F96="","",IF($AD$30<7,"",3)) -> 3 | P96: =IF(N96="","",($F96-K$86)) -> 2.357142857 | Q96: =IF(F96="","",IF(SUM(W95+X95)=4,"s",IF(SUM(W95+X95)=2,"w",""))) ->  | U96: =IF(ABS(K97)>I97,3,0) -> 0 | V96: =SIGN(K97) -> 1 | W96: =IF(ABS(P97)>N97,3,0) -> 0 | X96: =SIGN(P97) -> 1 | AA96: 0 | AB96: =Q97 -> 
D97: Matrix Reasoning | F97: =IF(F10="","",F10) -> 8 | I97: =IF(F97="","",IF($W$30<3,"",2)) -> 2 | K97: =IF(F97="","",(F97-$K$85)) -> 0.4 | L97: =IF(F97="","",IF(SUM(U96+V96)=4,"s",IF(SUM(U96+V96)=2,"w"," "))) ->  | N97: =IF(F97="","",IF($AD$30<7,"",IF(AD36>7,3,2))) -> 2 | P97: =IF(N97="","",($F97-K$86)) -> 0.3571428571 | Q97: =IF(F97="","",IF(SUM(W96+X96)=4,"s",IF(SUM(W96+X96)=2,"w",""))) ->  | U97: =IF(ABS(K98)>I98,3,0) -> 3 | V97: =SIGN(K98) -> -1 | W97: =IF(ABS(P98)>N98,3,0) -> 3 | X97: =SIGN(P98) -> -1 | AA97: 1 | AB97: =Q98 -> w
D98: Picture Concepts | F98: =IF(F12="","",F12) -> 5 | I98: =IF(F98="","",IF($W$30<3,"",2)) -> 2 | K98: =IF(F98="","",(F98-$K$85)) -> -2.6 | L98: =IF(F98="","",IF(SUM(U97+V97)=4,"s",IF(SUM(U97+V97)=2,"w"," "))) -> w | N98: =IF(F98="","",IF($AD$30<7,"",IF(AD37>10,3,2))) -> 2 | P98: =IF(N98="","",($F98-K$86)) -> -2.642857143 | Q98: =IF(F98="","",IF(SUM(W97+X97)=4,"s",IF(SUM(W97+X97)=2,"w",""))) -> w | U98: =IF(ABS(K99)>I99,3,0) -> 3 | V98: =SIGN(K99) -> -1 | W98: =IF(ABS(P99)>N99,3,0) -> 3 | X98: =SIGN(P99) -> -1 | AA98: 1 | AB98: =Q99 -> w
D99: Picture Completion | F99: =IF(F17="","",F17) -> 1 | I99: =IF(F99="","",IF($W$30<3,"",2)) -> 2 | K99: =IF(F99="","",(F99-$K$85)) -> -6.6 | L99: =IF(F99="","",IF(SUM(U98+V98)=4,"s",IF(SUM(U98+V98)=2,"w"," "))) -> w | N99: =IF(F99="","",IF($AD$30<7,"",IF(AD38>7,3,2))) -> 2 | P99: =IF(N99="","",($F99-K$86)) -> -6.642857143 | Q99: =IF(F99="","",IF(SUM(W98+X98)=4,"s",IF(SUM(W98+X98)=2,"w",""))) -> w | U99: =IF(ABS(K100)>I100,3,0) -> 3 | V99: =SIGN(K100) -> 1 | W99: =IF(ABS(P100)>N100,3,0) -> 3 | X99: =SIGN(P100) -> 1 | AA99: 1 | AB99: =Q100 -> s
D100: Object Assembly | F100: =IF(F20="","",F20) -> 14 | I100: =IF(F100="","",IF($Y$30<3,"",IF(Y30=5,3,2))) -> 3 | K100: =IF(F100="","",(F100-$K$85)) -> 6.4 | L100: =IF(F100="","",IF(SUM(U99+V99)=4,"s",IF(SUM(U99+V99)=2,"w"," "))) -> s | N100: =IF(F100="","",IF($AD$30<7,"",3)) -> 3 | P100: =IF(N100="","",($F100-K$86)) -> 6.357142857 | Q100: =IF(F100="","",IF(SUM(W99+X99)=4,"s",IF(SUM(W99+X99)=2,"w",""))) -> s | U100: =IF(ABS(K102)>I102,3,0) -> 0 | V100: =SIGN(K102) -> 0 | W100: =IF(ABS(P102)>N102,3,0) -> 0 | X100: =SIGN(P102) -> -1 | AA100: 0 | AB100: =Q102 -> 
B102: Pr. Spd. | D102: Symbol Search | F102: =IF(F13="","",F13) -> 6 | N102: =IF(F102="","",IF($AD$30<7,"",3)) -> 3 | P102: =IF(N102="","",($F102-K$86)) -> -1.642857143 | Q102: =IF(F102="","",IF(SUM(W100+X100)=4,"s",IF(SUM(W100+X100)=2,"w",""))) ->  | U102: =IF(ABS(K103)>I103,3,0) -> 0 | V102: =SIGN(K103) -> 0 | W102: =IF(ABS(P103)>N103,3,0) -> 3 | X102: =SIGN(P103) -> -1 | AA102: 1 | AB102: =Q103 -> w
D103: Coding | F103: =IF(F15="","",F15) -> 3 | L103: =IF(F103="","",IF(SUM(U102+V102)=4,"s",IF(SUM(U102+V102)=2,"w"," "))) ->  | N103: =IF(F103="","",IF($AD$30<7,"",3)) -> 3 | P103: =IF(N103="","",($F103-K$86)) -> -4.642857143 | Q103: =IF(F103="","",IF(SUM(W102+X102)=4,"s",IF(SUM(W102+X102)=2,"w",""))) -> w | U103: =IF(ABS(K105)>I105,3,0) -> 0 | V103: =SIGN(K105) -> 0 | W103: =IF(ABS(P105)>N105,3,0) -> 3 | X103: =SIGN(P105) -> 1 | AA103: 1
B105: GL | D105: Receptive Vocabulary | F105: =IF(F19="","",F19) -> 15 | N105: =IF(F105="","",IF($AD$30<7,"",3)) -> 3 | P105: =IF(N105="","",($F105-K$86)) -> 7.357142857 | Q105: =IF(F105="","",IF(SUM(W103+X103)=4,"s",IF(SUM(W103+X103)=2,"w",""))) -> s | U105: =IF(ABS(K106)>I106,3,0) -> 0 | V105: =SIGN(K106) -> 0 | W105: =IF(ABS(P106)>N106,3,0) -> 3 | X105: =SIGN(P106) -> 1 | AA105: 1
D106: Picture Naming | F106: =IF(F21="","",F21) -> 12 | N106: =IF(F106="","",IF($AD$30<7,"",3)) -> 3 | P106: =IF(N106="","",($F106-K$86)) -> 4.357142857 | Q106: =IF(F106="","",IF(SUM(W105+X105)=4,"s",IF(SUM(W105+X105)=2,"w",""))) -> s | AA106: =SUM(AA90:AA96) -> 3
AA107: =SUM(AA97:AA105) -> 6 | AC107: I | AD107: Ds | AE107: V | AF107: A | AG107: C | AH107: S | AI107: PC | AJ107: PA | AK107: BD | AL107: OA | AM107: Dsm
B108: 7. Compare relevant subtest groupings for significance and base rate
C110: ="Information ("&F90&") vs Receptive Vocabulary ("&F105&")" -> Information (9) vs Receptive Vocabulary (15) | H110: Normal | J110: Abnormal | M110: Is there an abnormal difference? | U110: =IF(F90=F105,1,IF(F90>F105,2,3)) -> 3 | V110: =CHOOSE(U110,"IN = RV","IN > RV","IN < RV") -> IN < RV
C111: =V111&" point "&W111&" difference" -> 6 point significant difference | H111: 0 - 3 | J111: 4 or more | M111: =IF(V111>3,"YES","NO") -> YES | V111: =ABS(F90-F105) -> 6 | W111: =IF(V111>2,"significant","nonsignificant") -> significant
C113: ="Object Assembly ("&F100&") vs Block Design ("&F96&")" -> Object Assembly (14) vs Block Design (10) | H113: Normal | J113: Abnormal | M113: Is there an abnormal difference? | U113: =IF(F100=F96,1,IF(F100>F96,2,3)) -> 2 | V113: =CHOOSE(U113,"OA = BD","OA > BD","OA < BD") -> OA > BD
C114: =V114&" point "&W114&" difference" -> 4 point significant difference | H114: 0 - 4 | J114: 5 or more | M114: =IF(V114>4,"YES","NO") -> NO | V114: =ABS(F100-F96) -> 4 | W114: =IF(V114>3,"significant","nonsignificant") -> significant
C116: ="Coding ("&F103&") vs Symbol Search ("&F102&")" -> Coding (3) vs Symbol Search (6) | H116: Normal | J116: Abnormal | M116: Is there an abnormal difference? | U116: =IF(F103=F102,1,IF(F103>F102,2,3)) -> 3 | V116: =CHOOSE(U116,"CD = SS","CD > SS","CD < SS") -> CD < SS
C117: =V117&" point "&W117&" difference" -> 3 point nonsignificant difference | H117: 0 - 3 | J117: 4 or more | M117: =IF(V117>3,"YES","NO") -> NO | V117: =ABS(F103-F102) -> 3 | W117: =IF(V117>3,"significant","nonsignificant") -> nonsignificant
C119: ="Receptive Vocabulary ("&F105&") vs Picture Naming ("&F106&")" -> Receptive Vocabulary (15) vs Picture Naming (12) | H119: Normal | J119: Abnormal | M119: Is there an abnormal difference? | U119: =IF(F105=F106,1,IF(F105>F106,2,3)) -> 2 | V119: =CHOOSE(U119,"RV = PN","RV > PN","RV < PN") -> RV > PN
C120: =V120&" point "&W120&" difference" -> 3 point significant difference | H120: 0 - 3 | J120: 4 or more | M120: =IF(V120>3,"YES","NO") -> NO | V120: =ABS(F105-F106) -> 3 | W120: =IF(V120>2,"significant","nonsignificant") -> significant
C122: ="Similarities ("&F94&") vs Picture Concepts ("&F98&")" -> Similarities (11) vs Picture Concepts (5) | H122: Normal | J122: Abnormal | M122: Is there an abnormal difference? | U122: =IF(F94=F98,1,IF(F94>F98,2,3)) -> 2 | V122: =CHOOSE(U122,"SI = PCn","SI > PCn","SI < PCn") -> SI > PCn
C123: =V123&" point "&W123&" difference" -> 6 point significant difference | H123: 0 - 4 | J123: 5 or more | M123: =IF(V123>4,"YES","NO") -> YES | V123: =ABS(F94-F98) -> 6 | W123: =IF(V123>2,"significant","nonsignificant") -> significant
B126: 7. Compare other subtest groupings for significance
C128: ="Vocabulary ("&F91&") vs Receptive Vocabulary ("&F105&")" -> Vocabulary (7) vs Receptive Vocabulary (15) | J128: ="Information ("&F90&") vs Comprehension ("&F93&")" -> Information (9) vs Comprehension (2) | U128: =IF(F91=F105,1,IF(F91>F105,2,3)) -> 3 | V128: =CHOOSE(U128,"VO = RV","VO > RV","VO < RV") -> VO < RV
C129: =V129&" point "&W129&" difference" -> 8 point significant difference | J129: =V135&" point "&W135&" difference" -> 7 point significant difference | V129: =ABS(F91-F105) -> 8 | W129: =IF(V129>2,"significant","nonsignificant") -> significant
C131: ="Vocabulary ("&F91&") vs Picture Naming ("&F106&")" -> Vocabulary (7) vs Picture Naming (12) | J131: ="Matrix Reasoning ("&F97&") vs Block Design ("&F96&")" -> Matrix Reasoning (8) vs Block Design (10) | U131: =IF(F91=F106,1,IF(F91>F106,2,3)) -> 3 | V131: =CHOOSE(U131,"VO = PN","VO > PN","VO < PN") -> VO < PN
C132: =V132&" point "&W132&" difference" -> 5 point significant difference | J132: =V138&" point "&W138&" difference" -> 2 point nonsignificant difference | V132: =ABS(F91-F106) -> 5 | W132: =IF(V132>2,"significant","nonsignificant") -> significant
U134: =IF(F90=F93,1,IF(F90>F93,2,3)) -> 2 | V134: =CHOOSE(U134,"IN = CO","IN > CO","IN < CO") -> IN > CO
V135: =ABS(F90-F93) -> 7 | W135: =IF(V135>2,"significant","nonsignificant") -> significant
U137: =IF(F97=F96,1,IF(F97>F96,2,3)) -> 3 | V137: =CHOOSE(U137,"MR = BD","MR > BD","MR < BD") -> MR < BD
V138: =ABS(F97-F96) -> 2 | W138: =IF(V138>2,"significant","nonsignificant") -> nonsignificant
AC151: =IF(ABS(L151)>8,3,0) -> 0 | AE151: =SIGN(L151) -> 0
AC152: =IF(ABS(L152)>10,3,0) -> 0 | AE152: =SIGN(L152) -> 0
AC153: =IF(ABS(L153)>10,3,0) -> 0 | AE153: =SIGN(L153) -> 0
AC155: =IF(ABS(M53)>9,3,0) -> 0 | AE155: =SIGN(M53) -> 0
AC156: =IF(ABS(M54)>10,3,0) -> 0 | AE156: =SIGN(M54) -> 0
AC157: =IF(ABS(M55)>10,3,0) -> 0 | AE157: =SIGN(M55) -> 0
AC158: =IF(ABS(L158)>8,3,0) -> 0 | AE158: =SIGN(L158) -> 0
AC160: =IF(ABS(L160)>8,3,0) -> 0 | AE160: =SIGN(L160) -> 0
AC161: =IF(ABS(L161)>7,3,0) -> 0 | AE161: =SIGN(L161) -> 0
AC162: =IF(ABS(L162)>8,3,0) -> 0 | AE162: =SIGN(L162) -> 0
AC164: =IF(ABS(I164-I165)>10.5,3,0) -> 0 | AE164: =SIGN(L164) -> 0
AC165: =IF(ABS(I164-I165)>10.5,3,0) -> 0 | AE165: =SIGN(L165) -> 0
AC167: =IF(ABS(J59-L60)>16.5,3,0) -> 0 | AE167: =SIGN(M59) -> 
AC168: =IF(ABS(J59-L60)>16.5,3,0) -> 0 | AE168: =SIGN(M60) -> 0
AC169: =IF(ABS(L61-I170)>16.5,3,0) -> 0 | AE169: =SIGN(M61) -> 
AC170: =IF(ABS(L61-I170)>16.5,3,0) -> 0 | AE170: =SIGN(L170) -> 0
AC171: =IF(ABS(I171-I172)>18,3,0) -> 0 | AE171: 0
AC172: =IF(ABS(I171-I172)>18,3,0) -> 0 | AE172: 0
AC173: =IF(ABS(I173-I174)>16.5,3,0) -> 0 | AE173: 0
AC174: =IF(ABS(I173-I174)>16.5,3,0) -> 0 | AE174: 0
AC175: =IF(ABS(I175-I176)>18.5,3,0) -> 0 | AE175: 0
AC176: =IF(ABS(I175-I176)>18.5,3,0) -> 0 | AE176: 0
AC177: =IF(ABS(I177-#REF!)>16.5,3,0) ->  | AE177: 0
AC178: =IF(ABS(I177-#REF!)>16.5,3,0) ->  | AE178: =SIGN(M64) -> 
AC180: =IF(ABS(L66-J67)>15.5,3,0) -> 0 | AE180: =SIGN(M66) -> 
AC181: =IF(ABS(L66-J67)>15.5,3,0) -> 0 | AE181: 0
AC182: =IF(ABS(J68-J69)>12.5,3,0) -> 0 | AE182: 0
AC183: =IF(ABS(J68-J69)>12.5,3,0) -> 0 | AE183: 0
AC184: =IF(ABS(J70-J71)>16.5,3,0) -> 0 | AE184: 0
AC185: =IF(ABS(J70-J71)>16.5,3,0) -> 0 | AE185: 0
AC186: =IF(ABS(I186-I187)>15.5,3,0) -> 0 | AE186: =SIGN(L186) -> 0
AC187: =IF(ABS(I186-I187)>15.5,3,0) -> 0 | AE187: 0
AC188: =IF(ABS(I188-I189)>15,3,0) -> 0 | AE188: 0
AC189: =IF(ABS(I188-I189)>15,3,0) -> 0 | AE189: 0
AC190: =IF(ABS(I190-I191)>17.5,3,0) -> 0 | AE190: 0
AC191: =IF(ABS(I190-I191)>17.5,3,0) -> 0 | AE191: 0
AW298: =$I$188 -> 0 | AX298: =$I$189 -> 0
AW299: Aud. Mem. | AX299: Rep.
AW300: =AVERAGE($AW$298:$AX$298) -> 0 | AX300: =AVERAGE($AW$298:$AX$298) -> 0
A304: SS | B304: 40 | C304: 62 | D304: 68 | E304: 71 | F304: 73 | G304: 75 | H304: 77 | I304: 78 | J304: 79 | K304: 80 | L304: 81 | M304: 82 | N304: 83 | O304: 84 | P304: 85 | Q304: 86 | R304: 87 | S304: 88 | T304: 89 | U304: 90 | V304: 91 | W304: 92 | X304: 93 | Y304: 94 | Z304: 95 | AA304: 96 | AB304: 97 | AC304: 98 | AD304: 99 | AE304: 100 | AF304: 101 | AG304: 102 | AH304: 103 | AI304: 104 | AJ304: 105 | AK304: 106 | AL304: 107 | AM304: 108 | AN304: 109 | AO304: 110 | AP304: 111 | AQ304: 112 | AR304: 113 | AS304: 114 | AT304: 115 | AU304: 116 | AV304: 117 | AW304: 118 | AX304: 119 | AY304: 120 | AZ304: 121 | BA304: 122 | BB304: 123 | BC304: 124 | BD304: 126 | BE304: 129 | BF304: 131 | BG304: 133
A305: %ile | B305: 1 | C305: 1 | D305: 2 | E305: 3 | F305: 4 | G305: 5 | H305: 6 | I305: 7 | J305: 8 | K305: 9 | L305: 10 | M305: 12 | N305: 13 | O305: 14 | P305: 16 | Q305: 18 | R305: 19 | S305: 21 | T305: 23 | U305: 25 | V305: 27 | W305: 30 | X305: 32 | Y305: 34 | Z305: 37 | AA305: 39 | AB305: 42 | AC305: 45 | AD305: 47 | AE305: 50 | AF305: 53 | AG305: 55 | AH305: 58 | AI305: 61 | AJ305: 63 | AK305: 66 | AL305: 68 | AM305: 70 | AN305: 73 | AO305: 75 | AP305: 77 | AQ305: 79 | AR305: 81 | AS305: 82 | AT305: 84 | AU305: 86 | AV305: 87 | AW305: 88 | AX305: 90 | AY305: 91 | AZ305: 92 | BA305: 93 | BB305: 94 | BC305: 95 | BD305: 96 | BE305: 97 | BF305: 98 | BG305: 99
C308: vp | D308: 1 | E308: 12 | F308: 13 | G308: 14 | H308: 15 | I308: 16 | J308: 17 | K308: 18 | L308: 19 | M308: 20 | N308: 21 | O308: 22 | P308: 23 | Q308: 24 | R308: 25 | S308: 26 | T308: 27 | U308: 28 | V308: 31 | W308: 34
C309: % | D309: 50 | E309: 34 | F309: 31 | G309: 28 | H309: 24 | I309: 22 | J309: 18 | K309: 16 | L309: 14 | M309: 12 | N309: 10 | O309: 8 | P309: 7 | Q309: 6 | R309: 5 | S309: 4 | T309: 3 | U309: 2 | V309: 1 | W309: 0.5
C310: SS | D310: 1 | E310: 2 | F310: 3 | G310: 4 | H310: 5 | I310: 6 | J310: 7 | K310: 8 | L310: 9 | M310: 10 | N310: 11 | O310: 12 | P310: 13 | Q310: 14 | R310: 15 | S310: 16 | T310: 17 | U310: 18 | V310: 19
C311: % | D311: 0.1 | E311: 0.4 | F311: 1 | G311: 2 | H311: 5 | I311: 9 | J311: 16 | K311: 25 | L311: 37 | M311: 50 | N311: 63 | O311: 75 | P311: 84 | Q311: 91 | R311: 95 | S311: 98 | T311: 99 | U311: 99.6 | V311: 99.9
C312: Vss | D312: 6 | E312: 7 | F312: 8 | G312: 9 | H312: 10 | I312: 11 | J312: 12 | K312: 13 | L312: 14 | M312: 15 | N312: 16 | O312: 17 | P312: 18 | Q312: 19 | R312: 20 | S312: 21 | T312: 22 | U312: 23 | V312: 24 | W312: 25 | X312: 26 | Y312: 27 | Z312: 28 | AA312: 29 | AB312: 30 | AC312: 31 | AD312: 32 | AE312: 33 | AF312: 34 | AG312: 35 | AH312: 36 | AI312: 37 | AJ312: 38 | AK312: 39 | AL312: 40 | AM312: 41 | AN312: 42 | AO312: 43 | AP312: 44 | AQ312: 45 | AR312: 46 | AS312: 47 | AT312: 48 | AU312: 49 | AV312: 50 | AW312: 51 | AX312: 52 | AY312: 53 | AZ312: 54 | BA312: 55 | BB312: 56 | BC312: 57 | BD312: 58 | BE312: 59 | BF312: 60 | BG312: 61 | BH312: 62 | BI312: 63 | BJ312: 64 | BK312: 65 | BL312: 66 | BM312: 67 | BN312: 68 | BO312: 69 | BP312: 70 | BQ312: 71 | BR312: 72 | BS312: 73 | BT312: 74 | BU312: 75 | BV312: 76 | BW312: 77 | BX312: 78 | BY312: 79 | BZ312: 80 | CA312: 81 | CB312: 82 | CC312: 83 | CD312: 84 | CE312: 85 | CF312: 86 | CG312: 87 | CH312: 88 | CI312: 89 | CJ312: 90 | CK312: 91 | CL312: 92 | CM312: 93 | CN312: 94
C313: VIQ | D313: 45 | E313: 46 | F313: 47 | G313: 49 | H313: 50 | I313: 51 | J313: 52 | K313: 54 | L313: 55 | M313: 57 | N313: 58 | O313: 59 | P313: 60 | Q313: 62 | R313: 64 | S313: 65 | T313: 66 | U313: 67 | V313: 68 | W313: 69 | X313: 70 | Y313: 72 | Z313: 73 | AA313: 74 | AB313: 75 | AC313: 77 | AD313: 78 | AE313: 79 | AF313: 80 | AG313: 81 | AH313: 82 | AI313: 84 | AJ313: 85 | AK313: 86 | AL313: 87 | AM313: 88 | AN313: 90 | AO313: 91 | AP313: 92 | AQ313: 94 | AR313: 95 | AS313: 96 | AT313: 97 | AU313: 98 | AV313: 100 | AW313: 101 | AX313: 102 | AY313: 103 | AZ313: 105 | BA313: 106 | BB313: 107 | BC313: 108 | BD313: 109 | BE313: 111 | BF313: 112 | BG313: 113 | BH313: 114 | BI313: 115 | BJ313: 117 | BK313: 118 | BL313: 119 | BM313: 120 | BN313: 122 | BO313: 123 | BP313: 124 | BQ313: 125 | BR313: 127 | BS313: 128 | BT313: 130 | BU313: 131 | BV313: 133 | BW313: 135 | BX313: 136 | BY313: 137 | BZ313: 139 | CA313: 140 | CB313: 141 | CC313: 142 | CD313: 143 | CE313: 145 | CF313: 146 | CG313: 147 | CH313: 149 | CI313: 150 | CJ313: 152 | CK313: 153 | CL313: 154 | CM313: 155 | CN313: =155 -> 155
C314: % | D314: 1 | E314: 1 | F314: 1 | G314: 1 | H314: 1 | I314: 1 | J314: 1 | K314: 1 | L314: 1 | M314: 1 | N314: 1 | O314: 1 | P314: 1 | Q314: 1 | R314: 1 | S314: 1 | T314: 1 | U314: 1 | V314: 2 | W314: 2 | X314: 2 | Y314: 2 | Z314: 4 | AA314: 4 | AB314: 5 | AC314: 6 | AD314: 7 | AE314: 8 | AF314: 9 | AG314: 10 | AH314: 12 | AI314: 12 | AJ314: 16 | AK314: 18 | AL314: 19 | AM314: 21 | AN314: 25 | AO314: 27 | AP314: 30 | AQ314: 34 | AR314: 37 | AS314: 40 | AT314: 42 | AU314: 45 | AV314: 50 | AW314: 53 | AX314: 55 | AY314: 58 | AZ314: 63 | BA314: 66 | BB314: 68 | BC314: 70 | BD314: 73 | BE314: 77 | BF314: 79 | BG314: 81 | BH314: 82 | BI314: 84 | BJ314: 87 | BK314: 66 | BL314: 90 | BM314: 91 | BN314: 93 | BO314: 94 | BP314: 95 | BQ314: 96 | BR314: 97 | BS314: 97 | BT314: 98 | BU314: 98 | BV314: 99 | BW314: 99 | BX314: 99 | BY314: 99 | BZ314: 99 | CA314: 99 | CB314: 99 | CC314: 99 | CD314: 99 | CE314: 99 | CF314: 99 | CG314: 99 | CH314: 99 | CI314: 99 | CJ314: 99 | CK314: 99 | CL314: 99 | CM314: 99 | CN314: 99
C315: Pss | D315: 9 | E315: 10 | F315: 11 | G315: 12 | H315: 13 | I315: 14 | J315: 15 | K315: 16 | L315: 17 | M315: 18 | N315: 19 | O315: 20 | P315: 21 | Q315: 22 | R315: 23 | S315: 24 | T315: 25 | U315: 26 | V315: 27 | W315: 28 | X315: 29 | Y315: 30 | Z315: 31 | AA315: 32 | AB315: 33 | AC315: 34 | AD315: 35 | AE315: 36 | AF315: 37 | AG315: 38 | AH315: 39 | AI315: 40 | AJ315: 41 | AK315: 42 | AL315: 43 | AM315: 44 | AN315: 45 | AO315: 46 | AP315: 47 | AQ315: 48 | AR315: 49 | AS315: 50 | AT315: 51 | AU315: 52 | AV315: 53 | AW315: 54 | AX315: 55 | AY315: 56 | AZ315: 57 | BA315: 58 | BB315: 59 | BC315: 60 | BD315: 61 | BE315: 62 | BF315: 63 | BG315: 64 | BH315: 65 | BI315: 66 | BJ315: 67 | BK315: 68 | BL315: 69 | BM315: 70 | BN315: 71 | BO315: 72 | BP315: 73 | BQ315: 74 | BR315: 75 | BS315: 76 | BT315: 77 | BU315: 78 | BV315: 79 | BW315: 80 | BX315: 81 | BY315: 82 | BZ315: 83 | CA315: 84 | CB315: 85 | CC315: 86 | CD315: 87 | CE315: 88 | CF315: 89 | CG315: 90
C316: PIQ | D316: 45 | E316: 46 | F316: 48 | G316: 49 | H316: 51 | I316: 52 | J316: 54 | K316: 55 | L316: 57 | M316: 58 | N316: 60 | O316: 61 | P316: 63 | Q316: 64 | R316: 65 | S316: 67 | T316: 68 | U316: 69 | V316: 70 | W316: 71 | X316: 72 | Y316: 73 | Z316: 74 | AA316: 75 | AB316: 77 | AC316: 78 | AD316: 80 | AE316: 81 | AF316: 82 | AG316: 84 | AH316: 85 | AI316: 86 | AJ316: 87 | AK316: 88 | AL316: 90 | AM316: 91 | AN316: 92 | AO316: 93 | AP316: 95 | AQ316: 96 | AR316: 98 | AS316: 100 | AT316: 101 | AU316: 102 | AV316: 104 | AW316: 105 | AX316: 106 | AY316: 108 | AZ316: 109 | BA316: 111 | BB316: 112 | BC316: 114 | BD316: 115 | BE316: 117 | BF316: 118 | BG316: 120 | BH316: 121 | BI316: 123 | BJ316: 124 | BK316: 126 | BL316: 128 | BM316: 129 | BN316: 130 | BO316: 131 | BP316: 132 | BQ316: 133 | BR316: 135 | BS316: 136 | BT316: 138 | BU316: 139 | BV316: 141 | BW316: 142 | BX316: 143 | BY316: 145 | BZ316: 146 | CA316: 147 | CB316: 149 | CC316: 150 | CD316: 151 | CE316: 152 | CF316: 154 | CG316: 155
C317: % | D317: 1 | E317: 1 | F317: 1 | G317: 1 | H317: 1 | I317: 1 | J317: 1 | K317: 1 | L317: 1 | M317: 1 | N317: 1 | O317: 1 | P317: 1 | Q317: 1 | R317: 1 | S317: 1 | T317: 2 | U317: 2 | V317: 2 | W317: 3 | X317: 3 | Y317: 4 | Z317: 5 | AA317: 5 | AB317: 6 | AC317: 7 | AD317: 9 | AE317: 10 | AF317: 12 | AG317: 14 | AH317: 16 | AI317: 18 | AJ317: 19 | AK317: 21 | AL317: 25 | AM317: 27 | AN317: 30 | AO317: 32 | AP317: 36 | AQ317: 40 | AR317: 45 | AS317: 50 | AT317: 53 | AU317: 55 | AV317: 61 | AW317: 63 | AX317: 66 | AY317: 70 | AZ317: 73 | BA317: 77 | BB317: 79 | BC317: 82 | BD317: 84 | BE317: 87 | BF317: 88 | BG317: 91 | BH317: 92 | BI317: 94 | BJ317: 95 | BK317: 96 | BL317: 97 | BM317: 97 | BN317: 98 | BO317: 98 | BP317: 98 | BQ317: 99 | BR317: 99 | BS317: 99 | BT317: 99 | BU317: 99 | BV317: 99 | BW317: 99 | BX317: 99 | BY317: 99 | BZ317: 99 | CA317: 99 | CB317: 99 | CC317: 99 | CD317: 99 | CE317: 99 | CF317: 99 | CG317: 99
C318: Fss | D318: 15 | E318: 16 | F318: 18 | G318: 19 | H318: 20 | I318: 22 | J318: 23 | K318: 24 | L318: 26 | M318: 27 | N318: 28 | O318: 30 | P318: 31 | Q318: 33 | R318: 34 | S318: 35 | T318: 37 | U318: 38 | V318: 39 | W318: 40 | X318: 42 | Y318: 43 | Z318: 44 | AA318: 45 | AB318: 46 | AC318: 48 | AD318: 49 | AE318: 50 | AF318: 51 | AG318: 53 | AH318: 55 | AI318: 57 | AJ318: 59 | AK318: 61 | AL318: 62 | AM318: 64 | AN318: 65 | AO318: 67 | AP318: 68 | AQ318: 70 | AR318: 71 | AS318: 73 | AT318: 75 | AU318: 76 | AV318: 77 | AW318: 79 | AX318: 81 | AY318: 82 | AZ318: 84 | BA318: 85 | BB318: 87 | BC318: 88 | BD318: 90 | BE318: 92 | BF318: 93 | BG318: 94 | BH318: 95 | BI318: 97 | BJ318: 98 | BK318: 99 | BL318: 100 | BM318: 102 | BN318: 104 | BO318: 106 | BP318: 107 | BQ318: 108 | BR318: 110 | BS318: 111 | BT318: 112 | BU318: 113 | BV318: 115 | BW318: 116 | BX318: 117 | BY318: 119 | BZ318: 120 | CA318: 121 | CB318: 122 | CC318: 123 | CD318: 124 | CE318: 126 | CF318: 127 | CG318: 128 | CH318: 130 | CI318: 131 | CJ318: 133 | CK318: 134 | CL318: 135 | CM318: 137 | CN318: 138 | CO318: 140 | CP318: 141 | CQ318: 142 | CR318: 143 | CS318: 144 | CT318: 146 | CU318: 147 | CV318: 148 | CW318: 149 | CX318: 150 | CY318: 151 | CZ318: 153 | DA318: 154 | DB318: 156 | DC318: 158 | DD318: 159 | DE318: 161 | DF318: 163 | DG318: 164 | DH318: 166 | DI318: 167 | DJ318: 168 | DK318: 170 | DL318: 171 | DM318: 173 | DN318: 174 | DO318: 176 | DP318: 177 | DQ318: 179 | DR318: 181 | DS318: 182 | DT318: 184
C319: FIQ | D319: 40 | E319: 41 | F319: 42 | G319: 43 | H319: 44 | I319: 45 | J319: 46 | K319: 47 | L319: 48 | M319: 49 | N319: 50 | O319: 51 | P319: 52 | Q319: 53 | R319: 54 | S319: 55 | T319: 56 | U319: 57 | V319: 58 | W319: 59 | X319: 60 | Y319: 61 | Z319: 62 | AA319: 63 | AB319: 64 | AC319: 65 | AD319: 66 | AE319: 67 | AF319: 68 | AG319: 69 | AH319: 70 | AI319: 71 | AJ319: 72 | AK319: 73 | AL319: 74 | AM319: 75 | AN319: 76 | AO319: 77 | AP319: 78 | AQ319: 79 | AR319: 80 | AS319: 81 | AT319: 82 | AU319: 83 | AV319: 84 | AW319: 85 | AX319: 86 | AY319: 87 | AZ319: 88 | BA319: 89 | BB319: 90 | BC319: 91 | BD319: 92 | BE319: 93 | BF319: 94 | BG319: 95 | BH319: 96 | BI319: 97 | BJ319: 98 | BK319: 99 | BL319: 100 | BM319: 101 | BN319: 102 | BO319: 103 | BP319: 104 | BQ319: 105 | BR319: 106 | BS319: 107 | BT319: 108 | BU319: 109 | BV319: 110 | BW319: 111 | BX319: 112 | BY319: 113 | BZ319: 114 | CA319: 115 | CB319: 116 | CC319: 117 | CD319: 118 | CE319: 119 | CF319: 120 | CG319: 121 | CH319: 122 | CI319: 123 | CJ319: 124 | CK319: 125 | CL319: 126 | CM319: 127 | CN319: 128 | CO319: 129 | CP319: 130 | CQ319: 131 | CR319: 132 | CS319: 133 | CT319: 134 | CU319: 135 | CV319: 136 | CW319: 137 | CX319: 138 | CY319: 139 | CZ319: 140 | DA319: 141 | DB319: 142 | DC319: 143 | DD319: 144 | DE319: 145 | DF319: 146 | DG319: 146 | DH319: 147 | DI319: 149 | DJ319: 150 | DK319: 151 | DL319: 152 | DM319: 153 | DN319: 154 | DO319: 155 | DP319: 156 | DQ319: 157 | DR319: 158 | DS319: 159 | DT319: 160
C320: % | D320: 1 | E320: 1 | F320: 1 | G320: 1 | H320: 1 | I320: 1 | J320: 1 | K320: 1 | L320: 1 | M320: 1 | N320: 1 | O320: 1 | P320: 1 | Q320: 1 | R320: 1 | S320: 1 | T320: 1 | U320: 1 | V320: 1 | W320: 1 | X320: 1 | Y320: 1 | Z320: 1 | AA320: 1 | AB320: 1 | AC320: 1 | AD320: 1 | AE320: 1 | AF320: 2 | AG320: 2 | AH320: 2 | AI320: 3 | AJ320: 3 | AK320: 4 | AL320: 4 | AM320: 5 | AN320: 5 | AO320: 6 | AP320: 7 | AQ320: 8 | AR320: 9 | AS320: 10 | AT320: 12 | AU320: 13 | AV320: 14 | AW320: 16 | AX320: 18 | AY320: 19 | AZ320: 21 | BA320: 23 | BB320: 25 | BC320: 27 | BD320: 30 | BE320: 32 | BF320: 34 | BG320: 37 | BH320: 40 | BI320: 42 | BJ320: 45 | BK320: 47 | BL320: 50 | BM320: 53 | BN320: 55 | BO320: 58 | BP320: 61 | BQ320: 63 | BR320: 66 | BS320: 68 | BT320: 70 | BU320: 73 | BV320: 75 | BW320: 77 | BX320: 79 | BY320: 81 | BZ320: 82 | CA320: 84 | CB320: 86 | CC320: 87 | CD320: 88 | CE320: 90 | CF320: 91 | CG320: 92 | CH320: 93 | CI320: 94 | CJ320: 95 | CK320: 95 | CL320: 96 | CM320: 96 | CN320: 97 | CO320: 97 | CP320: 98 | CQ320: 98 | CR320: 98 | CS320: 99 | CT320: 99 | CU320: 99 | CV320: 99 | CW320: 99 | CX320: 99 | CY320: 99 | CZ320: 99 | DA320: 99 | DB320: 99 | DC320: 99 | DD320: 99 | DE320: 99 | DF320: 99 | DG320: 99 | DH320: 99 | DI320: 99 | DJ320: 99 | DK320: 99 | DL320: 99 | DM320: 99 | DN320: 99 | DO320: 99 | DP320: 99 | DQ320: 99 | DR320: 99 | DS320: 99 | DT320: 99
D321: 0 | E321: 70 | F321: 80 | G321: 90 | H321: 111 | I321: 120 | J321: 130
D322: ExtLow | E322: BL | F322: LA | G322: AVE | H322: HAVE | I322: SUP | J322: VSUP
C323: Scatter | D323: 0 | E323: 1 | F323: 2 | G323: 3 | H323: 4 | I323: 5 | J323: 6 | K323: 7 | L323: 8 | M323: 9 | N323: 10 | O323: 11 | P323: 12 | Q323: 13 | R323: 14 | S323: 15 | T323: 16 | U323: 17 | V323: 18 | W323: 19 | X323: 20 | Y323: 21 | Z323: 22 | AA323: 23 | AB323: 24 | AC323: 25 | AD323: 26 | AE323: 27 | AF323: 28 | AG323: 29 | AH323: 30 | AI323: 31 | AJ323: 32 | AK323: 33 | AL323: 34 | AM323: 35 | AN323: 36 | AO323: 37 | AP323: 38 | AQ323: 39 | AR323: 40
C324: v6 scat% | D324: 100 | E324: 100 | F324: 98.4 | G324: 90.3 | H324: 72.8 | I324: 50.4 | J324: 31.3 | K324: 17.2 | L324: 7.9 | M324: 3.7 | N324: 1.8 | O324: 0.6 | P324: 0.2 | Q324: 0 | R324: 0 | S324: 0 | T324: 0 | U324: 0 | V324: 0
C325: v7 scat% | D325: 100 | E325: 100 | F325: 99.3 | G325: 95 | H325: 82.4 | I325: 61.7 | J325: 41.4 | K325: 24.4 | L325: 11.5 | M325: 5.1 | N325: 1.8 | O325: 0.9 | P325: 0.3 | Q325: 0.2 | R325: 0.2 | S325: 0 | T325: 0 | U325: 0 | V325: 0
C326: p5 Scat% | D326: 100 | E326: 99.9 | F326: 98.4 | G326: 90 | H326: 74.9 | I326: 56.5 | J326: 37.5 | K326: 23 | L326: 12.3 | M326: 5.4 | N326: 2.3 | O326: 1.1 | P326: 0.4 | Q326: 6 | R326: 5 | S326: 3.6 | T326: 2.6 | U326: 1.3 | V326: 0.7
C327: p7 Scat% | D327: 100 | E327: 100 | F327: 99.7 | G327: 96.8 | H327: 87.3 | I327: 70.1 | J327: 50.7 | K327: 32.4 | L327: 18.2 | M327: 8.9 | N327: 4.2 | O327: 1.9 | P327: 0.8 | Q327: 0.3 | R327: 0.2 | S327: 0.2 | T327: 0 | U327: 0 | V327: 0
C328: IQ 11 scat Scat% | D328: 100 | E328: 100 | F328: 99.9 | G328: 99.6 | H328: 96.7 | I328: 87.2 | J328: 71.2 | K328: 50.9 | L328: 32.2 | M328: 17.4 | N328: 8.1 | O328: 3.1 | P328: 1.2 | Q328: 0.3 | R328: 0.1 | S328: 0 | T328: 0 | U328: 0 | V328: 0 | W328: 0
C329: IQ 13 scat Scat% | D329: 100 | E329: 100 | F329: 100 | G329: 99.8 | H329: 98.5 | I329: 92.3 | J329: 79 | K329: 58 | L329: 37.7 | M329: 21.5 | N329: 10.2 | O329: 4.2 | P329: 1.9 | Q329: 0.8 | R329: 0.4 | S329: 0.3 | T329: 0.2 | U329: 0.1 | V329: 0 | W329: 0
C330: IQ 14 scat Scat% | D330: 100 | E330: 100 | F330: 100 | G330: 100 | H330: 99 | I330: 94.6 | J330: 82.2 | K330: 63.8 | L330: 42.5 | M330: 23.9 | N330: 11.5 | O330: 5 | P330: 2.4 | Q330: 0.8 | R330: 0.4 | S330: 0.3 | T330: 0.2 | U330: 0.1 | V330: 0.1 | W330: 0
C332: vp diff | D332: 100 | E332: 97 | F332: 88 | G332: 81 | H332: 73 | I332: 66 | J332: 60 | K332: 54 | L332: 48 | M332: 43 | N332: 37 | O332: 32 | P332: 28 | Q332: 24 | R332: 20 | S332: 19 | T332: 16 | U332: 13 | V332: 11 | W332: 9 | X332: 7 | Y332: 6 | Z332: 5 | AA332: 4 | AB332: 3 | AC332: 3 | AD332: 2 | AE332: 2 | AF332: 1 | AG332: 1 | AH332: 1 | AI332: 1 | AJ332: 1 | AK332: 1 | AL332: 0.4 | AM332: 0.3 | AN332: 0.3 | AO332: 0.3 | AP332: 0.2 | AQ332: 0.2 | AR332: 0.1
C333: p7 Scat% | D333: 100 | E333: 100 | F333: 99.7 | G333: 96.8 | H333: 87.3 | I333: 70.1 | J333: 50.7 | K333: 32.4 | L333: 18.2 | M333: 8.9 | N333: 4.2 | O333: 1.9 | P333: 0.8 | Q333: 0.3 | R333: 0.2 | S333: 0.2 | T333: 0 | U333: 0 | V333: 0
C334: p7 Scat% | D334: 100 | E334: 100 | F334: 99.7 | G334: 96.8 | H334: 87.3 | I334: 70.1 | J334: 50.7 | K334: 32.4 | L334: 18.2 | M334: 8.9 | N334: 4.2 | O334: 1.9 | P334: 0.8 | Q334: 0.3 | R334: 0.2 | S334: 0.2 | T334: 0 | U334: 0 | V334: 0
C336: Pairs | D336: 1 | E336: 2 | F336: 5 | G336: 10 | H336: 25 | I336: 50 | N336: free rc | O336: 1 | P336: 2 | Q336: 5 | R336: 10 | S336: 25 | T336: 50 | Y336: copy | Z336: 1 | AA336: 2 | AB336: 5 | AC336: 10 | AD336: 25 | AE336: 50
C337: 16 | D337: 0 | E337: 4 | F337: 7 | G337: 9 | H337: 13 | I337: 15 | K337: =IF($O$8="","",LOOKUP($O$8,D337:I337,$D$336:$I$336)) ->  | L337: =LOOKUP(N2,C337:C349,K337:K349) ->  | N337: 16 | O337: 0 | P337: 5 | Q337: 6 | R337: 6 | S337: 7 | T337: 8 | V337: =IF($O$9="","",LOOKUP($O$9,O337:T337,$D$336:$I$336)) ->  | W337: =LOOKUP(N2,N337:N349,V337:V349) ->  | Y337: 16 | Z337: 0 | AA337: 63 | AB337: 81 | AC337: 92 | AD337: 109 | AE337: 124 | AG337: =IF($O$10="","",LOOKUP($O$10,Z337:AE337,$D$336:$I$336)) ->  | AH337: =LOOKUP(N2,Y337:Y349,AG337:AG349) -> 
C338: 18 | D338: 0 | E338: 4 | F338: 6 | G338: 9 | H338: 12 | I338: 15 | N338: 18 | O338: 0 | P338: 4 | Q338: 5 | R338: 6 | S338: 7 | T338: 8 | Y338: 18 | Z338: 0 | AA338: 49 | AB338: 77 | AC338: 102 | AD338: 116 | AE338: 131
C339: 20 | D339: 0 | E339: 2 | F339: 5 | G339: 7 | H339: 11 | I339: 14 | N339: 20 | O339: 0 | P339: 4 | Q339: 5 | R339: 6 | S339: 7 | T339: 8 | Y339: 20 | Z339: 0 | AA339: 60 | AB339: 82 | AC339: 93 | AD339: 110 | AE339: 130
C340: 25 | D340: 0 | E340: 5 | F340: 6 | G340: 9 | H340: 11 | I340: 14 | N340: 25 | O340: 0 | P340: 5 | Q340: 5 | R340: 6 | S340: 7 | T340: 8 | Y340: 25 | Z340: 0 | AA340: 77 | AB340: 84 | AC340: 92 | AD340: 111 | AE340: 129
C341: 30 | D341: 0 | E341: 4 | F341: 7 | G341: 8 | H341: 10 | I341: 14 | N341: 30 | O341: 0 | P341: 5 | Q341: 5 | R341: 6 | S341: 7 | T341: 8 | Y341: 30 | Z341: 0 | AA341: 66 | AB341: 82 | AC341: 93 | AD341: 108 | AE341: 123
C342: 35 | D342: 0 | E342: 4 | F342: 5 | G342: 6 | H342: 10 | I342: 13 | N342: 35 | O342: 0 | P342: 5 | Q342: 5 | R342: 6 | S342: 6 | T342: 7 | Y342: 35 | Z342: 0 | AA342: 53 | AB342: 75 | AC342: 90 | AD342: 106 | AE342: 124
C343: 45 | D343: 0 | E343: 2 | F343: 4 | G343: 6 | H343: 9 | I343: 12 | N343: 45 | O343: 0 | P343: 4 | Q343: 5 | R343: 5 | S343: 6 | T343: 7 | Y343: 45 | Z343: 0 | AA343: 43 | AB343: 73 | AC343: 82 | AD343: 99 | AE343: 114
C344: 55 | D344: 0 | E344: 2 | F344: 3 | G344: 4 | H344: 8 | I344: 10 | N344: 55 | O344: 0 | P344: 3 | Q344: 4 | R344: 5 | S344: 6 | T344: 7 | Y344: 55 | Z344: 0 | AA344: 27 | AB344: 53 | AC344: 65 | AD344: 83 | AE344: 102
C345: 65 | D345: 0 | E345: 2 | F345: 3 | G345: 4 | H345: 6 | I345: 8 | N345: 65 | O345: 0 | P345: 2 | Q345: 4 | R345: 5 | S345: 6 | T345: 7 | Y345: 65 | Z345: 0 | AA345: 19 | AB345: 39 | AC345: 59 | AD345: 73 | AE345: 93
C346: 70 | D346: 0 | E346: 1 | F346: 3 | G346: 4 | H346: 6 | I346: 8 | N346: 70 | O346: 0 | P346: 2 | Q346: 4 | R346: 5 | S346: 6 | T346: 7 | Y346: 70 | Z346: 0 | AA346: 45 | AB346: 53 | AC346: 60 | AD346: 74 | AE346: 90
C347: 75 | D347: 0 | E347: 2 | F347: 3 | G347: 4 | H347: 6 | I347: 9 | N347: 75 | O347: 0 | P347: 2 | Q347: 4 | R347: 4 | S347: 5 | T347: 6 | Y347: 75 | Z347: 0 | AA347: 35 | AB347: 49 | AC347: 55 | AD347: 68 | AE347: 83
C348: 80 | D348: 0 | E348: 0 | F348: 1 | G348: 2 | H348: 5 | I348: 8 | N348: 80 | O348: 0 | P348: 2 | Q348: 3 | R348: 4 | S348: 5 | T348: 6 | Y348: 80 | Z348: 0 | AA348: 23 | AB348: 32 | AC348: 45 | AD348: 59 | AE348: 77
C349: 85 | D349: 0 | E349: 0 | F349: 1 | G349: 2 | H349: 4 | I349: 8 | N349: 85 | O349: 0 | P349: 1 | Q349: 3 | R349: 4 | S349: 5 | T349: 6 | Y349: 85 | Z349: 0 | AA349: 20 | AB349: 25 | AC349: 37 | AD349: 45 | AE349: 62
D378: 1 | E378: 70 | F378: 80 | G378: 90 | H378: 110 | I378: 120 | J378: 130
D379: Extremely Low | E379: Borderline | F379: Low Average | G379: Average | H379: High Average | I379: Superior | J379: Very Superior
C380: vsc | D380: 46 | E380: 55 | F380: 67 | G380: 75 | H380: 86 | I380: 95 | J380: 106 | K380: 116 | L380: 127 | M380: 135 | N380: 147 | O380: 155
C381: vconf- | D381: -4 | E381: -4 | F381: -5 | G381: -5 | H381: -6 | I381: -6 | J381: -7 | K381: -7 | L381: -8 | M381: -8 | N381: -9 | O381: -9
C382: vconf+ | D382: 9 | E382: 8 | F382: 8 | G382: 7 | H382: 7 | I382: 6 | J382: 6 | K382: 5 | L382: 5 | M382: 4 | N382: 4 | O382: 3
C383: psc | D383: 45 | E383: 47 | F383: 55 | G383: 63 | H383: 72 | I383: 79 | J383: 88 | K383: 96 | L383: 105 | M383: 114 | N383: 123 | O383: 129 | P383: 140 | Q383: 146 | R383: 155
C384: pconf- | D384: -3 | E384: -4 | F384: -4 | G384: -5 | H384: -5 | I384: -6 | J384: -6 | K384: -7 | L384: -7 | M384: -8 | N384: -8 | O384: -9 | P384: -9 | Q384: -9 | R384: -9
C385: pconf+ | D385: 10 | E385: 10 | F385: 9 | G385: 9 | H385: 8 | I385: 8 | J385: 7 | K385: 7 | L385: 6 | M385: 6 | N385: 5 | O385: 5 | P385: 4 | Q385: 4 | R385: 3
C386: fssc | D386: 40 | E386: 48 | F386: 53 | G386: 82 | H386: 86 | I386: 112 | J386: 115 | K386: 119 | L386: 148 | M386: 153
C387: fsconf- | D387: -3 | E387: -3 | F387: -4 | G387: -4 | H387: -5 | I387: -5 | J387: -5 | K387: -6 | L387: -6 | M387: -7
C388: fsconf+ | D388: 7 | E388: 6 | F388: 6 | G388: 5 | H388: 5 | I388: 5 | J388: 4 | K388: 4 | L388: 3 | M388: 3
C389: psi | D389: 46 | E389: 49 | F389: 56 | G389: 60 | H389: 64 | I389: 68 | J389: 73 | K389: 75 | L389: 83 | M389: 85 | N389: 91 | O389: 94 | P389: 100 | Q389: 102 | R389: 110 | S389: 113 | T389: 119 | U389: 122 | V389: 128 | W389: 131 | X389: 137 | Y389: 140 | Z389: 145 | AA389: 150
C390: psi | D390: -3 | E390: -3 | F390: -4 | G390: -4 | H390: -5 | I390: -5 | J390: -6 | K390: -6 | L390: -7 | M390: -7 | N390: -8 | O390: -8 | P390: -9 | Q390: -9 | R390: -10 | S390: -10 | T390: -11 | U390: -11 | V390: -12 | W390: -12 | X390: -13 | Y390: -13 | Z390: -14 | AA390: -14
C391: psi | D391: 15 | E391: 14 | F391: 14 | G391: 13 | H391: 13 | I391: 12 | J391: 13 | K391: 11 | L391: 11 | M391: 10 | N391: 10 | O391: 9 | P391: 9 | Q391: 8 | R391: 8 | S391: 7 | T391: 7 | U391: 6 | V391: 6 | W391: 5 | X391: 5 | Y391: 4 | Z391: 4 | AA391: 3
C392: GLC | D392: 45 | E392: 50 | F392: 54 | G392: 63 | H392: 67 | I392: 75 | J392: 78 | K392: 86 | L392: 91 | M392: 100 | N392: 103 | O392: 113 | P392: 116 | Q392: 125 | R392: 128 | S392: 138 | T392: 141 | U392: 147 | V392: 152
... 22 more rows
